bitfinex-derivatives/quotes_ETHF0:USTF0_20251220
["timestamp","ask_amount","ask_price","bid_price","bid_amount"]
[1766236516068,2.35487667,2977.6,2977.0,3.359]
[1766236516575,3.359,2977.9,2977.0,3.359]
[1766236516778,2.35487667,2977.6,2977.0,3.359]
[1766236521181,3.359,2977.9,2977.0,3.359]
[1766236521383,2.35487667,2977.6,2977.0,3.359]
[1766236529186,2.35487667,2977.8,2977.0,3.359]
[1766236530491,2.35487667,2977.6,2976.8,0.00503701]
[1766236530788,2.35487667,2977.6,2976.9,3.359]
[1766236534585,2.35487667,2977.4,2977.0,3.359]
[1766236535393,3.359,2977.9,2977.0,3.359]
[1766236535589,2.35487667,2977.5,2976.9,3.359]
[1766236536893,2.35492224,2977.5,2976.9,3.359]
[1766236541899,0.05847182,2977.4,2973.9,0.98259053]
[1766236542191,0.16822,2973.8,2970.9,3.359]
[1766236542388,2.35492224,2973.6,2971.5,4.40474461]
[1766236542588,3.33373998,2973.6,2971.5,4.40474461]
[1766236542784,3.86387676,2973.6,2971.6,3.359]
[1766236542983,0.00504617,2972.8,2970.7,0.25573892]
[1766236543197,0.00504617,2972.8,2971.1,2.35492224]
[1766236543198,2.35492224,2972.5,2971.1,2.35492224]
[1766236543490,11.758,2972.7,2970.4,4.81192224]
[1766236543491,3.359,2972.4,2971.2,3.359]
[1766236543691,3.359,2972.4,2970.7,2.35492224]
[1766236543898,2.35492224,2972.0,2970.8,3.359]
[1766236544088,2.35492224,2972.7,2971.1,0.00504617]
[1766236544296,2.35492224,2972.3,2971.2,3.36]
[1766236544494,3.36,2972.2,2971.2,3.36]
[1766236544699,2.35492224,2972.1,2971.2,3.36]
[1766236545298,2.35492224,2972.1,2964.6,7.823718]
[1766236545299,11.7746112,2971.3,2968.2,0.25469279]
[1766236545594,3.46310671,2969.9,2967.4,3.46310671]
[1766236545800,3.36,2969.8,2967.5,12.876]
[1766236546094,0.00300828,2969.8,2967.5,12.87971001]
[1766236546400,0.00504617,2968.9,2968.4,0.00504617]
[1766236546601,0.00300828,2969.8,2968.5,3.361]
[1766236547395,3.46310671,2971.5,2969.1,3.46310671]
[1766236547595,0.00504617,2970.6,2970.0,0.00504617]
[1766236547899,3.36704617,2970.6,2970.0,0.00504617]
[1766236548301,3.46310671,2970.4,2968.1,3.46310671]
[1766236548595,3.362,2970.3,2968.2,3.362]
[1766236548795,3.362,2970.3,2968.3,1.15]
[1766236549198,0.00880925,2970.6,2964.8,2.88649057]
[1766236549397,3.46310671,2970.4,2968.7,0.00504617]
[1766236549602,46.538,2970.3,2968.7,3.36804617]
[1766236549897,14.981,2970.2,2968.7,0.00504617]
[1766236550101,3.47191596,2970.6,2968.7,0.00504617]
[1766236550301,60.389,2970.5,2968.7,0.00504617]
[1766236550497,3.363,2970.4,2969.0,3.46310671]
[1766236550701,3.363,2970.4,2968.7,0.00504617]
[1766236550702,3.363,2970.4,2969.1,3.363]
[1766236550903,3.363,2970.3,2969.2,3.363]
[1766236551097,10.303,2970.5,2969.2,3.363]
[1766236551098,3.363,2970.5,2969.2,3.363]
[1766236551304,0.00880925,2970.6,2969.2,3.363]
[1766236551498,3.37280925,2970.6,2969.2,3.363]
[1766236551904,1.24602134,2972.2,2969.5,3.46310671]
[1766236552207,45.417,2972.1,2970.0,3.46310671]
[1766236552502,47.547,2972.1,2970.1,3.364]
[1766236552704,1.04957306,2972.0,2970.1,3.364]
[1766236552903,0.00504617,2971.3,2970.8,0.00504617]
[1766236553505,3.364,2971.8,2970.8,0.00504617]
[1766236554398,0.00504617,2971.6,2970.8,0.00504617]
[1766236555099,0.00504617,2971.6,2970.9,3.365]
[1766236556000,0.00262649,2972.0,2971.0,3.639]
[1766236556201,0.00262649,2972.0,2971.1,3.46310671]
[1766236556397,0.00262649,2972.0,2971.0,3.639]
[1766236556398,0.00262649,2972.0,2971.2,3.365]
[1766236556606,0.00262649,2972.0,2970.8,0.00504617]
[1766236556905,0.00262649,2972.0,2970.9,3.365]
[1766236557709,0.00262649,2972.0,2970.8,0.00504617]
[1766236558006,0.00262649,2972.0,2970.9,3.948]
[1766236559402,3.365,2973.4,2971.9,3.46310671]
[1766236559605,3.365,2973.4,2972.4,0.00504617]
[1766236559808,1.18744396,2973.7,2972.4,0.00504617]
[1766236560103,3.365,2973.6,2972.5,3.365]
[1766236560296,0.00417531,2973.6,2972.5,3.3692436]
[1766236561802,0.00417531,2973.6,2972.7,3.46310671]
[1766236562005,3.365,2974.5,2972.9,3.46310671]
[1766236562205,3.365,2974.5,2972.5,0.0042436]
[1766236562607,1.18744396,2974.5,2972.6,12.917]
[1766236562907,1.19174157,2974.5,2972.6,12.917]
[1766236563109,3.365,2974.4,2972.6,12.917]
[1766236563302,1.18744396,2974.4,2972.6,12.917]
[1766236563607,0.00429761,2974.5,2972.6,4.782]
[1766236563608,4.55244396,2974.3,2972.6,4.782]
[1766236563811,4.55244396,2974.3,2972.7,3.365]
[1766236564309,1.18744396,2974.2,2972.7,3.365]
[1766236565099,1.18744396,2974.2,2972.5,0.0042436]
[1766236565304,1.18744396,2974.1,2972.6,3.421]
[1766236566302,1.18744396,2974.0,2972.6,3.421]
[1766236567213,1.18744396,2973.8,2972.6,3.421]
[1766236568208,1.18744396,2973.7,2972.6,3.421]
[1766236568509,1.18744396,2973.7,2972.7,11.893]
[1766236568707,1.18744396,2973.7,2972.5,0.0042436]
[1766236568911,1.18744396,2973.7,2972.6,12.198]
[1766236569215,1.18744396,2973.5,2972.6,12.198]
[1766236569914,1.18744396,2973.2,2972.6,12.198]
[1766236570206,2.39543336,2973.8,2972.7,11.938]
[1766236571216,2.39543336,2973.8,2972.7,9.21272694]
[1766236571415,1.0746852,2973.7,2972.7,9.21272694]
[1766236571610,1.0746852,2973.6,2972.7,9.21272694]
[1766236571817,1.0746852,2973.5,2972.5,0.0042436]
[1766236572019,2.39543336,2973.8,2972.8,14.973]
[1766236572211,2.39543336,2974.0,2972.9,3.364]
[1766236572413,2.39543336,2974.1,2973.0,9.613]
[1766236572612,2.39543336,2974.1,2973.1,3.364]
[1766236573122,6.23343336,2974.4,2973.1,3.364]
[1766236573318,3.364,2974.6,2973.1,3.364]
[1766236574916,3.364,2974.6,2972.6,0.16829]
[1766236575225,3.364,2974.6,2973.2,6.98]
[1766236575415,3.364,2974.6,2973.3,3.364]
[1766236576616,3.53218,2974.6,2973.1,3.364]
[1766236576821,3.53218,2974.6,2973.2,3.364]
[1766236577022,3.53218,2974.6,2973.3,3.364]
[1766236578429,3.36829761,2974.5,2973.3,3.364]
[1766236580231,5.76373097,2974.5,2973.3,3.364]
[1766236580529,3.36829761,2974.5,2973.4,5.545]
[1766236581227,5.76373097,2974.5,2973.5,0.63878987]
[1766236581427,3.36829761,2974.5,2973.6,3.364]
[1766236582023,3.36829761,2974.5,2973.7,3.364]
[1766236582230,0.502363,2974.4,2973.7,1.4822]
[1766236582424,0.502363,2974.3,2973.7,1.4822]
[1766236582729,0.502363,2974.2,2973.7,1.4822]
[1766236583025,0.502363,2974.1,2973.7,1.4822]
[1766236583230,0.502363,2974.0,2973.7,1.4822]
[1766236583531,0.502363,2973.9,2972.5,0.0042436]
[1766236583727,0.502363,2973.8,2972.6,15.626]
[1766236583931,1.00918563,2973.7,2972.6,15.626]
[1766236584127,0.49430063,2974.4,2972.6,15.626]
[1766236584434,0.49430063,2974.3,2972.6,15.626]
[1766236584729,0.49430063,2974.2,2972.6,15.626]
[1766236584926,0.49430063,2974.1,2972.6,15.626]
[1766236585129,0.49430063,2974.0,2972.6,15.626]
[1766236585324,0.49430063,2973.9,2972.6,15.626]
[1766236585530,3.36829761,2974.5,2972.6,15.626]
[1766236587528,3.36829761,2974.5,2972.7,13.478]
[1766236587729,3.36829761,2974.5,2970.5,13.66295061]
[1766236587730,2.39543336,2973.8,2971.7,3.363]
[1766236587928,3.91095061,2973.2,2971.8,3.363]
[1766236588129,3.363,2973.1,2971.9,3.363]
[1766236588427,3.363,2973.2,2972.0,3.363]
[1766236588621,3.363,2973.2,2971.5,4.99195061]
[1766236588622,3.363,2973.2,2972.1,3.363]
[1766236588825,3.363,2973.8,2972.2,5.702]
[1766236589030,2.39543336,2974.3,2972.7,0.00504617]
[1766236589226,11.772,2974.2,2972.8,3.363]
[1766236589431,0.07908576,2974.4,2972.9,0.968]
[1766236589627,0.07908576,2974.4,2972.7,0.00504617]
[1766236589832,0.07908576,2974.4,2972.8,7.464]
[1766236590134,1.79390235,2974.2,2972.7,0.00504617]
[1766236590332,1.79390235,2973.9,2972.8,3.364]
[1766236590534,3.364,2973.8,2972.8,3.364]
[1766236590725,1.79390235,2974.0,2972.8,3.364]
[1766236590926,3.364,2973.9,2972.8,3.364]
[1766236591127,3.364,2973.9,2972.7,0.00504617]
[1766236591327,3.364,2973.9,2972.8,3.364]
[1766236592631,3.364,2973.9,2972.7,0.00504617]
[1766236592833,3.364,2973.9,2972.9,3.364]
[1766236593028,1.79390235,2974.0,2972.9,3.364]
[1766236593230,3.364,2973.9,2972.9,3.364]
[1766236596232,0.95658694,2973.8,2972.9,3.364]
[1766236596433,0.95658694,2973.7,2972.9,3.364]
[1766236596627,0.95658694,2973.6,2972.9,3.364]
[1766236596836,0.95658694,2973.5,2972.9,3.364]
[1766236597037,0.95658694,2973.4,2972.9,3.364]
[1766236597341,0.95655615,2973.8,2972.9,3.364]
[1766236597533,0.95655615,2973.7,2972.9,3.364]
[1766236597734,0.95655615,2973.6,2972.9,3.364]
[1766236597936,0.95655615,2973.5,2972.9,3.364]
[1766236598137,0.95655615,2973.8,2972.9,3.364]
[1766236598332,0.95655615,2973.7,2972.9,3.364]
[1766236598534,0.95655615,2973.6,2972.9,3.364]
[1766236598739,0.95655615,2973.8,2972.9,3.364]
[1766236598932,0.95655615,2973.7,2972.9,3.364]
[1766236599134,0.95655615,2973.8,2972.9,3.364]
[1766236599633,0.95655615,2973.8,2972.7,0.00504617]
[1766236599835,0.95655615,2973.8,2972.8,3.364]
[1766236600239,3.364,2973.9,2972.8,3.364]
[1766236600940,3.364,2973.9,2972.7,0.00504617]
[1766236601143,3.364,2973.9,2972.8,7.056]
[1766236602139,3.364,2973.9,2972.8,4.7]
[1766236602443,3.364,2973.9,2972.9,3.364]
[1766236602838,3.364,2974.0,2972.9,3.364]
[1766236603141,3.364,2974.0,2972.7,0.00504617]
[1766236603340,3.364,2974.0,2972.8,7.641]
[1766236603641,3.364,2974.0,2972.2,0.00408011]
[1766236603642,0.16823,2973.8,2972.5,3.364]
[1766236604045,4.11550681,2974.0,2972.5,3.364]
[1766236604246,3.364,2973.7,2972.5,3.364]
[1766236604447,3.364,2973.7,2972.8,0.00504617]
[1766236604448,0.00504617,2973.4,2972.8,0.00504617]
[1766236605946,3.36904617,2973.4,2972.2,0.00408011]
[1766236606245,3.36904617,2973.4,2972.3,3.364]
[1766236607044,3.36904617,2973.4,2972.6,0.00504617]
[1766236609850,3.36904617,2973.4,2972.6,4.617e-05]
[1766236610748,0.00504617,2973.4,2972.6,4.617e-05]
[1766236610952,3.364,2973.3,2972.6,4.617e-05]
[1766236611151,0.00504617,2973.4,2972.6,4.617e-05]
[1766236611450,3.364,2973.3,2972.6,4.617e-05]
[1766236612154,0.00504617,2973.4,2972.6,4.617e-05]
[1766236612350,3.364,2973.3,2972.6,4.617e-05]
[1766236613646,0.00504617,2973.4,2972.6,4.617e-05]
[1766236614050,3.364,2973.3,2972.6,4.617e-05]
[1766236614652,3.364,2973.3,2972.6,3.36404617]
[1766236615054,3.36904617,2973.4,2972.6,3.36404617]
[1766236615752,0.00504617,2973.4,2972.6,3.36404617]
[1766236615953,3.36904617,2973.4,2972.6,3.36404617]
[1766236616158,0.00504617,2973.4,2972.6,3.36404617]
[1766236616355,3.36904617,2973.4,2972.6,3.36404617]
[1766236619464,3.36904617,2973.4,2972.6,4.617e-05]
[1766236619647,3.36904617,2973.4,2972.6,3.36404617]
[1766236625164,0.00504617,2973.4,2972.6,3.36404617]
[1766236625957,3.364,2973.7,2972.6,3.36404617]
[1766236626364,3.364,2973.8,2972.6,3.36404617]
[1766236627253,3.364,2973.8,2972.6,4.617e-05]
[1766236627458,3.364,2973.8,2972.7,3.364]
[1766236627653,3.364,2973.8,2972.6,4.617e-05]
[1766236628163,0.00502135,2973.5,2972.7,3.364]
[1766236628768,2.135e-05,2973.5,2972.7,3.364]
[1766236631068,2.135e-05,2973.5,2972.7,11.775]
[1766236633663,2.135e-05,2973.5,2972.6,3.45223814]
[1766236633869,2.135e-05,2973.5,2972.6,4.617e-05]
[1766236634069,2.135e-05,2973.5,2972.7,13.653]
[1766236635166,2.135e-05,2973.5,2972.7,5.243]
[1766236635364,2.135e-05,2973.5,2972.8,3.364]
[1766236637360,2.135e-05,2973.5,2972.6,3.45223814]
[1766236637558,2.135e-05,2973.5,2972.7,13.683]
[1766236640366,2.135e-05,2973.5,2972.6,3.45223814]
[1766236640771,2.135e-05,2973.5,2972.7,13.649]
[1766236643376,2.135e-05,2973.5,2972.6,4.617e-05]
[1766236643570,2.135e-05,2973.5,2972.7,13.679]
[1766236644776,2.135e-05,2973.5,2972.6,4.617e-05]
[1766236645075,2.135e-05,2973.5,2972.7,5.236]
[1766236646077,2.135e-05,2973.5,2972.6,4.617e-05]
[1766236646274,2.135e-05,2973.5,2972.7,14.875]
[1766236646479,2.135e-05,2973.5,2972.8,12.26]
[1766236646678,2.135e-05,2973.5,2972.6,4.617e-05]
[1766236646868,2.135e-05,2973.5,2972.7,3.364]
[1766236647475,2.135e-05,2973.5,2972.7,5.72464841]
[1766236647980,2.135e-05,2973.5,2972.7,2.36064841]
[1766236648177,2.135e-05,2973.5,2972.8,3.364]
[1766236649180,2.36113545,2973.5,2972.9,3.364]
[1766236649372,2.135e-05,2973.5,2972.9,3.364]
[1766236663287,0.00429761,2974.5,2973.0,3.45287981]
[1766236663490,0.00429761,2974.5,2973.1,5.124]
[1766236663680,0.00429761,2974.5,2973.2,3.364]
[1766236669600,0.00429761,2974.5,2973.6,2.35927382]
[1766236669895,2.36357143,2974.5,2973.7,3.363]
[1766236670100,2.36357143,2974.5,2973.8,3.363]
[1766236670302,2.36357143,2974.5,2973.9,3.363]
[1766236670604,0.00429761,2974.5,2973.9,3.363]
[1766236673304,2.35927382,2974.1,2973.1,3.363]
[1766236673498,3.363,2974.0,2973.2,3.363]
[1766236675506,0.00429761,2974.5,2973.5,2.35927382]
[1766236675807,3.36729761,2974.5,2973.6,3.363]
[1766236676005,2.35927382,2974.4,2973.6,3.363]
[1766236677012,3.36729761,2974.5,2973.6,3.363]
[1766236677213,5.72657143,2974.5,2973.6,3.363]
[1766236677711,3.36729761,2974.5,2973.6,3.363]
[1766236677902,2.36357143,2974.5,2973.6,3.363]
[1766236678409,5.72657143,2974.5,2973.6,3.363]
[1766236679710,5.72657143,2974.5,2973.4,2.35927382]
[1766236679918,5.72657143,2974.5,2973.5,3.363]
[1766236680214,0.00429761,2974.5,2973.6,2.35927382]
[1766236680914,3.36729761,2974.5,2973.6,2.35927382]
[1766236682817,3.36729761,2974.5,2973.5,3.363]
[1766236683015,0.00429761,2974.5,2973.5,3.363]
[1766236683320,5.72227382,2974.9,2973.7,2.35927382]
[1766236683616,5.72227382,2974.9,2974.0,0.00504617]
[1766236683814,2.35927382,2974.7,2974.0,0.00504617]
[1766236684119,2.35927382,2974.3,2974.0,0.00504617]
[1766236684322,2.36295526,2974.3,2974.0,4.617e-05]
[1766236684709,0.00368144,2974.3,2974.0,4.617e-05]
[1766236686518,0.005,2974.4,2974.0,4.617e-05]
[1766236686924,0.005,2974.4,2974.1,3.363]
[1766236687521,0.00814845,2974.4,2974.1,3.363]
[1766236688525,5.72229727,2974.8,2974.1,3.363]
[1766236688723,3.55516531,2976.0,2974.1,3.363]
[1766236689025,2.35929727,2975.0,2974.1,3.363]
[1766236689227,3.363,2974.9,2974.1,3.363]
[1766236689628,3.36581059,2974.9,2974.1,3.363]
[1766236689827,2.36210786,2974.9,2974.1,3.363]
[1766236690825,0.00281059,2974.9,2974.1,3.363]
[1766236693525,0.00281059,2974.9,2974.2,3.363]
[1766236694429,8.606,2974.8,2973.4,3.363]
[1766236694625,2.35859847,2974.5,2973.4,3.363]
[1766236694822,3.363,2974.4,2973.4,3.363]
[1766236695532,3.363,2974.4,2973.6,0.00504617]
[1766236696933,3.363,2974.3,2973.6,0.00504617]
[1766236697429,2.35859847,2974.8,2973.7,3.363]
[1766236697630,3.363,2974.7,2973.7,3.363]
[1766236700939,3.363,2974.7,2973.6,1.94904617]
[1766236701135,3.363,2974.7,2973.8,3.363]
[1766236701942,0.00281059,2974.9,2973.8,3.363]
[1766236702140,3.363,2974.8,2973.8,3.363]
[1766236702843,3.363,2974.7,2973.8,3.363]
[1766236704144,0.00281059,2974.9,2973.8,3.363]
[1766236704440,3.363,2974.8,2973.8,3.363]
[1766236704635,3.363,2974.8,2973.6,0.00504617]
[1766236704838,3.363,2974.8,2973.7,3.363]
[1766236705236,5.72159847,2974.8,2973.7,3.363]
[1766236706139,2.35859847,2974.8,2973.7,3.363]
[1766236706342,3.363,2974.7,2973.7,3.363]
[1766236707042,2.35859847,2974.8,2973.7,3.363]
[1766236707239,3.363,2974.7,2973.7,3.363]
[1766236707940,0.00281059,2974.9,2973.7,3.363]
[1766236708141,3.363,2974.8,2973.7,3.363]
[1766236712051,2.36140906,2974.9,2973.7,3.363]
[1766236712344,3.363,2974.8,2973.7,3.363]
[1766236714247,3.363,2974.8,2973.6,0.00504617]
[1766236714453,3.363,2974.8,2973.7,3.363]
[1766236715753,0.00281059,2974.9,2973.7,3.363]
[1766236715943,3.36581059,2974.9,2973.7,3.363]
[1766236717757,0.00281059,2974.9,2973.8,2.35859847]
[1766236722350,0.00281059,2974.9,2973.7,3.363]
[1766236722551,0.00281059,2974.9,2973.8,2.35858653]
[1766236722751,0.00281059,2974.9,2973.6,0.00504617]
[1766236722952,0.00281059,2974.9,2973.7,6.288]
[1766236723547,0.00281059,2974.9,2973.7,4.264]
[1766236723755,3.363,2974.8,2973.8,3.363]
[1766236723951,2.35858653,2973.9,2973.5,3.363]
[1766236724163,2.35858653,2973.9,2973.1,3.363]
[1766236725157,0.00504617,2973.8,2973.2,0.00504617]
[1766236738369,3.838,2975.5,2973.2,2.3636327]
[1766236738569,2.52675653,2974.8,2973.2,2.3636327]
[1766236738763,2.35858653,2974.5,2973.2,0.00504617]
[1766236738975,2.35858653,2974.7,2973.2,0.00504617]
[1766236739276,3.363,2974.6,2973.3,0.745]
[1766236739467,3.363,2974.6,2973.4,3.363]
[1766236739870,2.35858653,2974.8,2973.4,3.363]
[1766236740170,3.363,2974.7,2973.4,3.363]
[1766236740763,3.363,2974.7,2973.3,2.309]
[1766236740976,3.363,2974.7,2973.5,3.363]
[1766236741272,2.35858653,2974.8,2973.5,3.363]
[1766236741465,3.363,2974.7,2973.5,3.363]
[1766236742271,0.00281059,2974.9,2973.7,2.35858653]
[1766236742475,5.72158653,2974.8,2973.8,3.363]
[1766236742675,5.72158653,2974.8,2973.9,3.363]
[1766236743476,3.363,2974.8,2973.9,3.363]
[1766236743680,2.35858653,2974.7,2973.9,3.363]
[1766236751089,3.363,2974.8,2973.9,3.363]
[1766236753489,2.35918026,2974.7,2973.9,3.363]
[1766236753686,2.35918026,2974.7,2973.8,3.363]
[1766236754190,2.35918026,2974.5,2973.8,3.363]
[1766236754383,5.72218026,2974.5,2973.8,3.363]
[1766236757793,5.72218026,2974.5,2973.2,2.36422643]
[1766236757993,2.35918026,2974.1,2973.3,3.877]
[1766236758395,2.35918026,2974.3,2973.3,3.877]
[1766236758796,2.35986808,2974.3,2973.3,3.877]
[1766236759690,2.35986808,2974.2,2973.3,3.877]
[1766236759991,5.72286808,2974.2,2973.3,3.877]
[1766236760191,5.72286808,2974.2,2973.2,0.00504617]
[1766236760392,5.72286808,2974.2,2973.3,3.363]
[1766236760898,2.35986808,2974.0,2973.3,3.363]
[1766236765997,5.72286808,2974.0,2973.3,3.363]
[1766236767204,2.35986808,2974.0,2973.3,3.363]
[1766236767903,5.72286808,2974.0,2973.3,3.363]
[1766236769005,3.363,2974.0,2973.3,3.363]
[1766236769301,2.35986808,2974.0,2973.3,3.363]
[1766236769505,5.72286808,2974.0,2973.3,3.363]
[1766236770294,2.35986808,2973.8,2973.3,3.363]
[1766236771113,2.35986808,2973.6,2972.9,3.363]
[1766236771404,5.72286808,2973.7,2972.9,3.363]
[1766236771703,5.72286808,2973.8,2972.9,3.363]
[1766236772108,0.00504617,2973.6,2973.1,0.00504617]
[1766236774503,2.36491425,2973.6,2973.1,0.00504617]
[1766236774699,2.35986808,2973.4,2973.1,0.00504617]
[1766236774904,2.35986808,2973.2,2972.9,3.363]
[1766236775104,2.35986808,2973.4,2972.9,3.363]
[1766236775910,2.35986808,2973.4,2972.9,3.36804617]
[1766236777013,0.00504617,2973.6,2972.9,3.36804617]
[1766236777213,2.35986808,2973.4,2972.9,3.36804617]
[1766236777410,5.72286808,2973.4,2972.9,3.36804617]
[1766236778811,5.72286808,2973.4,2972.9,0.00504617]
[1766236782915,5.72286808,2973.4,2972.6,3.363]
[1766236783709,2.35986808,2973.2,2972.6,3.363]
[1766236783914,2.35986808,2973.0,2972.6,3.36804617]
[1766236784311,2.35986808,2973.2,2972.6,3.36804617]
[1766236786722,3.364,2973.1,2972.6,3.36804617]
[1766236787318,3.364,2973.1,2972.6,0.00504617]
[1766236788724,2.35986808,2973.2,2972.6,0.00504617]
[1766236789025,3.364,2973.1,2972.6,0.00504617]
[1766236790314,2.35986808,2973.2,2972.6,0.00504617]
[1766236790521,3.364,2973.1,2972.6,0.00504617]
[1766236790923,3.364,2973.0,2972.6,0.00504617]
[1766236792627,2.35986808,2973.2,2972.6,0.00504617]
[1766236792828,3.364,2973.1,2972.6,0.00504617]
[1766236793322,3.364,2973.1,2972.2,0.00408011]
[1766236794217,3.364,2973.1,2972.4,0.00504617]
[1766236797819,7.607,2973.3,2972.4,0.00504617]
[1766236798126,3.364,2973.2,2972.4,0.00504617]
[1766236799829,2.36159525,2973.4,2972.4,0.00504617]
[1766236800029,0.00504617,2973.6,2972.4,0.00504617]
[1766236800227,2.36159525,2973.4,2972.4,0.00504617]
[1766236800422,3.364,2973.3,2972.4,0.00504617]
[1766236800721,0.00504617,2973.6,2972.4,0.00504617]
[1766236800722,2.36664142,2973.6,2972.4,0.00504617]
[1766236800923,0.00504617,2973.6,2972.7,2.36159525]
[1766236801122,3.364,2973.5,2972.7,2.36159525]
[1766236801323,0.00504617,2973.6,2972.7,2.36159525]
[1766236801522,3.364,2973.6,2972.9,2.36159525]
[1766236801723,3.364,2973.6,2972.9,5.72559525]
[1766236802528,0.00504617,2973.5,2972.9,3.364]
[1766236804030,0.00504617,2973.5,2973.0,2.36159525]
[1766236804230,3.364,2973.6,2973.0,2.36159525]
[1766236805037,2.36159525,2974.1,2973.0,2.36159525]
[1766236805327,0.00504617,2973.8,2973.0,2.36159525]
[1766236805532,3.364,2973.7,2973.0,2.36159525]
[1766236806629,2.36159525,2974.1,2973.0,2.36159525]
[1766236806934,3.364,2974.0,2973.3,2.36159525]
[1766236807727,0.00504617,2973.9,2973.3,2.36159525]
[1766236808234,0.00504617,2973.9,2973.2,3.364]
[1766236808431,0.00504617,2973.9,2972.0,2.36159525]
[1766236808432,0.649,2973.8,2970.3,3.05136438]
[1766236808637,2.36159525,2971.6,2969.6,5.89405525]
[1766236808835,5.72559525,2971.5,2970.2,2.36159525]
[1766236809137,3.364,2971.5,2969.8,3.364]
[1766236809339,2.36159525,2971.4,2970.1,2.36159525]
[1766236809631,4.617e-05,2970.9,2970.5,2.36159525]
[1766236809838,4.617e-05,2970.9,2970.6,3.364]
[1766236810741,3.36772367,2971.4,2970.7,2.36159525]
[1766236810742,0.00372367,2971.4,2970.7,2.36159525]
[1766236811734,0.00504617,2971.3,2970.9,2.36159525]
[1766236811930,0.00504617,2971.3,2970.9,5.72559525]
[1766236812938,3.364,2971.8,2970.9,5.72559525]
[1766236813237,3.364,2971.9,2970.9,5.72559525]
[1766236813626,3.365,2971.9,2970.9,3.364]
[1766236813825,3.36915073,2971.9,2970.9,5.72559525]
[1766236814231,0.00415073,2971.9,2971.1,2.36159525]
[1766236814435,0.00415073,2971.9,2971.2,3.365]
[1766236815233,0.00415073,2971.9,2971.3,2.36159525]
[1766236815539,3.365,2972.2,2971.2,5.72745251]
[1766236815730,3.365,2972.2,2971.2,3.365]
[1766236815931,2.36245251,2972.5,2971.2,3.365]
[1766236816138,2.36245251,2972.6,2971.2,3.365]
[1766236816339,3.365,2972.5,2971.6,0.00504617]
[1766236816532,3.365,2972.4,2971.6,0.00504617]
[1766236820027,0.00264517,2972.6,2971.6,0.00504617]
[1766236820240,3.36764517,2972.6,2971.6,0.00504617]
[1766236820834,0.00264517,2972.6,2971.6,0.00504617]
[1766236821028,3.36764517,2972.6,2971.6,0.00504617]
[1766236821234,0.00264517,2972.6,2971.6,0.00504617]
[1766236821439,3.36764517,2972.6,2971.6,0.00504617]
[1766236821935,0.00264517,2972.6,2971.8,2.36245251]
[1766236822140,0.00264517,2972.6,2971.9,3.365]
[1766236824442,3.838,2973.3,2972.1,2.36245251]
[1766236824643,2.36245251,2973.7,2972.1,2.36245251]
[1766236824644,3.365,2973.2,2972.2,3.365]
[1766236824842,12.251,2973.6,2972.2,3.365]
[1766236825042,3.838,2973.6,2972.2,3.365]
[1766236825243,3.365,2973.5,2972.2,3.365]
[1766236825445,3.36915887,2973.5,2972.4,2.36245251]
[1766236825647,3.36915887,2973.5,2972.5,3.365]
[1766236829947,0.00415887,2973.5,2972.5,3.365]
[1766236831045,0.00415887,2973.5,2972.6,2.36040009]
[1766236832142,0.00415887,2973.5,2972.7,4.811]
[1766236832344,0.00415887,2973.5,2972.6,2.36040009]
[1766236832751,0.00415887,2973.5,2972.7,4.81]
[1766236832943,3.838,2974.0,2972.7,4.81]
[1766236833848,3.84111602,2974.0,2972.7,4.81]
[1766236834350,3.84111602,2974.0,2972.9,2.36040009]
[1766236834547,3.84111602,2974.0,2973.2,0.00504617]
[1766236834747,3.84111602,2974.0,2973.3,3.364]
[1766236837369,3.84111602,2974.0,2973.2,0.00504617]
[1766236837654,3.84111602,2974.0,2973.3,1.5901]
[1766236843866,3.364,2974.8,2973.6,2.36040009]
[1766236844158,3.364,2974.8,2973.7,3.364]
[1766236844353,0.07048934,2975.3,2974.3,2.36040009]
[1766236844558,3.43448934,2975.3,2974.4,3.364]
[1766236844955,0.07475668,2975.3,2974.4,3.36794115]
[1766236845153,3.43875668,2975.3,2974.4,3.36794115]
[1766236845958,2.36040009,2974.7,2973.1,2.36040009]
[1766236846357,2.36040009,2974.7,2973.3,4.246]
[1766236846858,2.36040009,2974.7,2973.3,4.25020995]
[1766236847465,3.364,2974.9,2973.3,4.25020995]
[1766236851258,2.552,2975.2,2973.3,4.25020995]
[1766236851457,3.363,2975.1,2973.3,4.25020995]
[1766236852166,2.552,2975.2,2973.3,4.25020995]
[1766236852367,3.363,2975.1,2973.3,4.25020995]
[1766236853968,3.363,2975.1,2973.3,0.00420995]
[1766236854169,3.363,2975.0,2973.3,0.00420995]
[1766236854368,3.363,2975.0,2973.4,13.005]
[1766236855969,2.552,2975.2,2973.3,0.00420995]
[1766236856273,3.363,2975.1,2973.4,11.824]
[1766236857272,3.363,2975.1,2973.5,15.394]
[1766236857866,3.363,2975.0,2973.5,15.394]
[1766236858268,3.363,2975.0,2973.6,8.064]
[1766236861570,2.552,2975.2,2973.6,8.064]
[1766236861771,5.915,2975.2,2973.6,8.064]
[1766236861972,0.07475668,2975.3,2973.6,9.24870375]
[1766236861973,0.00426734,2975.3,2973.6,9.24870375]
[1766236862176,0.00426734,2975.3,2973.7,3.58873273]
[1766236863582,0.00426734,2975.3,2973.6,1.18470375]
[1766236863781,0.00426734,2975.3,2973.7,16.825]
[1766236863983,0.00426734,2975.3,2973.8,26.537]
[1766236864581,0.00426734,2975.3,2973.6,1.18470375]
[1766236864784,0.00426734,2975.3,2973.9,12.811]
[1766236864981,0.00426734,2975.3,2973.6,1.18470375]
[1766236865286,0.00426734,2975.3,2973.7,19.711]
[1766236865488,0.00426734,2975.3,2973.8,23.174]